bitfinex/quotes_SOLUSD_20250419
["timestamp","ask_amount","ask_price","bid_price","bid_amount"]
[1745027671003,0.03,134.9,134.13,36.39765096]
[1745027671702,0.03,134.9,134.13,14.46639396]
[1745027671905,0.03,134.9,134.13,36.39764996]
[1745027672503,0.03,134.9,134.13,14.46639396]
[1745027672801,0.03,134.9,134.13,36.39765096]
[1745027673408,0.03,134.9,134.13,14.46639396]
[1745027673703,0.03,134.9,134.13,36.39764996]
[1745027674406,0.03,134.9,134.13,14.46639396]
[1745027674730,0.03,134.9,134.13,36.39765096]
[1745027675408,0.03,134.9,134.13,14.46639396]
[1745027676205,0.03,134.9,134.13,36.39764996]
[1745027676502,0.03,134.9,134.13,14.46639396]
[1745027676804,0.03,134.9,134.13,36.39765096]
[1745027677505,0.03,134.9,134.13,14.46639396]
[1745027678817,0.03,134.9,134.13,24.80596396]
[1745027679103,0.03,134.9,134.13,14.46639396]
[1745027679308,0.03,134.9,134.13,24.80596296]
[1745027679610,0.03,134.9,134.13,14.46639396]
[1745027679906,0.03,134.9,134.13,24.80596396]
[1745027680203,0.03,134.9,134.13,14.46639396]
[1745027680504,0.03,134.9,134.13,24.80596396]
[1745027680799,0.03,134.9,134.13,14.46639396]
[1745027681601,0.03,134.9,134.13,24.80596396]
[1745027681907,0.03,134.9,134.13,14.46639396]
[1745027682705,0.03,134.9,134.13,24.80596396]
[1745027682907,0.03,134.9,134.13,14.46639396]
[1745027683205,0.03,134.9,134.13,24.80596396]
[1745027683506,0.03,134.9,134.13,14.46639396]
[1745027684408,0.03,134.9,134.13,24.80596296]
[1745027684608,0.03,134.9,134.13,14.46639396]
[1745027685311,0.03,134.9,134.13,24.80596396]
[1745027685709,0.03,134.9,134.13,14.46639396]
[1745027686009,0.03,134.9,134.13,24.80596396]
[1745027686315,0.03,134.9,134.13,14.46639396]
[1745027686694,0.03,134.9,134.13,24.80596396]
[1745027687013,0.03,134.9,134.13,14.46639396]
[1745027687312,0.03,134.9,134.13,24.80596396]
[1745027687612,0.03,134.9,134.13,14.46639396]
[1745027687919,0.03,134.9,134.13,24.80596396]
[1745027688216,0.03,134.9,134.13,14.46639396]
[1745027688513,0.03,134.9,134.13,24.80596396]
[1745027688897,0.03,134.9,134.13,14.46639396]
[1745027689100,0.03,134.9,134.13,24.80596396]
[1745027689599,0.03,134.9,134.13,14.46639396]
[1745027689807,0.03,134.9,134.13,24.80596396]
[1745027690519,0.03,134.9,134.13,14.46639396]
[1745027691201,0.03,134.9,134.13,24.80596296]
[1745027691515,0.03,134.9,134.13,14.46639396]
[1745027691717,0.03,134.9,134.13,24.80596296]
[1745027692106,0.03,134.9,134.13,14.46639396]
[1745027692420,0.03,134.9,134.13,24.80596296]
[1745027692712,0.03,134.9,134.13,14.46639396]
[1745027693018,0.03,134.9,134.13,24.80596296]
[1745027693416,0.03,134.9,134.13,14.46639396]
[1745027693821,0.03,134.9,134.13,24.80596396]
[1745027694120,0.03,134.9,134.13,14.46639396]
[1745027694623,0.03,134.9,134.13,24.80596396]
[1745027694919,0.03,134.9,134.13,14.46639396]
[1745027695522,0.03,134.9,134.13,24.80596396]
[1745027696023,0.03,134.9,134.13,14.46639396]
[1745027696321,0.03,134.9,134.13,24.80596396]
[1745027696714,0.03,134.9,134.13,14.46639396]
[1745027696915,0.03,134.9,134.13,24.80596396]
[1745027697304,0.03,134.9,134.13,14.46639396]
[1745027697505,0.03,134.9,134.13,24.80596396]
[1745027698019,0.03,134.9,134.13,14.46639396]
[1745027698212,0.03,134.9,134.13,24.80596396]
[1745027698606,0.03,134.9,134.13,14.46639396]
[1745027698820,0.03,134.9,134.13,24.80596396]
[1745027699208,0.03,134.9,134.13,14.46639396]
[1745027699406,0.03,134.9,134.13,24.80596396]
[1745027699731,0.03,134.9,134.13,14.46639396]
[1745027700026,0.03,134.9,134.13,24.80596396]
[1745027700323,0.03,134.9,134.13,14.46639396]
[1745027700628,0.03,134.9,134.13,24.80596396]
[1745027701122,0.03,134.9,134.13,14.46639396]
[1745027701425,0.03,134.9,134.13,24.80596396]
[1745027701726,0.03,134.9,134.13,14.46639396]
[1745027702124,0.03,134.9,134.13,24.80596396]
[1745027702516,0.03,134.9,134.13,14.46639396]
[1745027702926,0.03,134.9,134.13,24.80596296]
[1745027703227,0.03,134.9,134.13,14.46639396]
[1745027703528,0.03,134.9,134.13,24.80596396]
[1745027703925,0.03,134.9,134.13,14.46639396]
[1745027704126,0.03,134.9,134.13,24.80596396]
[1745027704426,0.03,134.9,134.13,14.46639396]
[1745027704737,0.03,134.9,134.13,24.80596396]
[1745027705120,0.03,134.9,134.13,14.46639396]
[1745027705311,0.03,134.9,134.13,24.80596396]
[1745027705636,0.03,134.9,134.13,14.46639396]
[1745027705927,0.03,134.9,134.13,24.80596396]
[1745027706229,0.03,134.9,134.13,14.46639396]
[1745027706627,0.03,134.9,134.13,24.80596296]
[1745027707029,0.03,134.9,134.13,14.46639396]
[1745027707230,0.03,134.9,134.14,9.37807152]
[1745027707412,0.03,134.9,134.14,17.91221727]
[1745027716837,0.03,134.9,134.15,5.23567085]
[1745027717038,0.03,134.9,134.16,17.91221727]
[1745027717233,0.03,134.9,134.17,8.9000942]
[1745027717427,0.03,134.9,134.18,17.91221727]
[1745027718334,0.03,134.9,134.19,20.73806379]
[1745027718533,0.03,134.9,134.2,17.91221727]
[1745027718737,0.03,134.9,134.21,8.94101143]
[1745027718941,0.03,134.9,134.22,17.91221727]
[1745027719255,0.03,134.9,134.22,33.57911637]
[1745027719426,0.03,134.9,134.22,23.23954637]
[1745027719626,0.03,134.9,134.22,33.57911637]
[1745027719923,0.03,134.9,134.22,23.23954637]
[1745027720464,0.03,134.9,134.22,33.57911637]
[1745027720746,0.03,134.9,134.22,27.00549118]
[1745027720946,0.03,134.9,134.22,37.34506118]
[1745027721247,0.03,134.9,134.22,27.00549118]
[1745027721748,0.03,134.9,134.22,37.34506118]
[1745027721950,0.03,134.9,134.22,27.00549118]
[1745027722250,0.03,134.9,134.22,37.34506118]
[1745027722553,0.03,134.9,134.22,27.00549118]
[1745027722854,0.03,134.9,134.22,37.34506118]
[1745027723052,0.03,134.9,134.22,27.00549118]
[1745027723351,0.03,134.9,134.22,37.34506118]
[1745027723552,0.03,134.9,134.22,27.00549118]
[1745027724050,0.03,134.9,134.22,18.47134543]
[1745027724654,0.03,134.9,134.22,28.81091543]
[1745027724954,0.03,134.9,134.22,18.47134543]
[1745027725453,0.03,134.9,134.22,28.81091543]
[1745027725949,0.03,134.9,134.22,18.47134543]
[1745027726249,0.03,134.9,134.22,28.81091543]
[1745027726642,0.03,134.9,134.22,18.47134543]
[1745027726845,0.03,134.9,134.22,28.81091543]
[1745027727043,0.03,134.9,134.22,37.34506118]
[1745027727235,0.03,134.9,134.22,27.00549118]
[1745027727435,0.03,134.9,134.22,37.34506118]
[1745027727757,0.03,134.9,134.23,8.53414575]
[1745027727948,0.03,134.9,134.24,8.98850252]
[1745027728643,0.03,134.9,134.25,10.33957]
[1745027728843,0.03,134.9,134.26,11.56076784]
[1745027729044,0.03,134.9,134.26,9.56133949]
[1745027729445,0.03,134.9,134.26,10.33957]
[1745027729648,0.03,134.9,134.27,9.56133949]
[1745027730445,0.03,134.9,134.28,10.33957]
[1745027730758,0.03,134.9,134.29,11.95629628]
[1745027730939,0.03,134.9,134.29,9.11541105]
[1745027731361,0.03,134.9,134.29,19.45498105]
[1745027749776,0.03,134.9,134.3,6.03947451]
[1745027750971,0.03,134.9,134.31,10.339569]
[1745027751181,0.03,134.9,134.31,27.8796421]
[1745027751361,0.03,134.9,134.32,7.93189565]
[1745027751866,0.03,134.9,134.32,18.27146565]
[1745027777798,0.03,134.9,134.33,0.22036125]
[1745027778004,0.03,134.9,134.34,10.50557069]
[1745027778202,0.03,134.9,134.34,9.95749555]
[1745027778384,0.03,134.9,134.35,9.33699169]
[1745027778704,0.03,134.9,134.35,6.36974269]
[1745027779101,0.03,134.9,134.35,9.33699169]
[1745027779398,0.03,134.9,134.35,6.36974269]
[1745027779603,0.03,134.9,134.35,9.33699169]
[1745027779901,0.03,134.9,134.35,6.36974269]
[1745027780493,0.03,134.9,134.35,9.33699169]
[1745027780685,0.03,134.9,134.35,6.36974269]
[1745027781008,0.03,134.9,134.35,9.33699169]
[1745027781304,0.03,134.9,134.35,6.36974269]
[1745027783308,0.03,134.9,134.35,9.33721169]
[1745027783484,0.03,134.9,134.35,6.36974269]
[1745027783807,0.03,134.9,134.35,9.33721169]
[1745027784108,0.03,134.9,134.35,6.36974269]
[1745027784706,0.03,134.9,134.35,9.33721169]
[1745027784910,0.03,134.9,134.35,6.36974269]
[1745027785208,0.03,134.9,134.35,9.33721169]
[1745027785387,0.03,134.9,134.35,6.36974269]
[1745027785706,0.03,134.9,134.35,9.33721169]
[1745027786009,0.03,134.9,134.35,6.36974269]
[1745027786305,0.03,134.9,134.35,9.33721169]
[1745027786516,0.03,134.9,134.35,6.36974269]
[1745027787095,0.03,134.9,134.35,9.33699169]
[1745027787297,0.03,134.9,134.35,6.36974269]
[1745027787706,0.03,134.9,134.35,9.33699169]
[1745027787918,0.03,134.9,134.35,6.36974269]
[1745027788087,0.03,134.9,134.35,9.33699169]
[1745027788287,0.03,134.9,134.35,6.36974269]
[1745027788609,0.03,134.9,134.35,9.33699169]
[1745027788807,0.03,134.9,134.35,6.36974269]
[1745027789310,0.03,134.9,134.35,9.33699169]
[1745027789611,0.03,134.9,134.35,6.36974269]
[1745027789907,0.03,134.9,134.35,9.33699169]
[1745027790108,0.03,134.9,134.35,6.36974269]
[1745027790408,0.03,134.9,134.35,9.33699169]
[1745027790613,0.03,134.9,134.35,6.36974269]
[1745027790909,0.03,134.9,134.35,9.33699169]
[1745027791215,0.03,134.9,134.35,6.36974269]
[1745027791701,0.03,134.9,134.35,9.33699169]
[1745027791904,0.03,134.9,134.35,6.36974269]
[1745027792404,0.03,134.9,134.35,9.33699169]
[1745027792591,0.03,134.9,134.35,6.36974269]
[1745027792791,0.03,134.9,134.35,9.33699169]
[1745027793089,0.03,134.9,134.35,6.36974269]
[1745027793290,0.03,134.9,134.35,9.33699169]
[1745027793510,0.03,134.9,134.35,6.36974269]
[1745027793812,0.03,134.9,134.35,9.33699169]
[1745027794107,0.03,134.9,134.35,6.36974269]
[1745027794311,0.03,134.9,134.35,9.33699169]
[1745027795212,0.03,134.9,134.35,6.36974269]
[1745027795511,0.03,134.9,134.35,9.33699169]
[1745027795807,0.03,134.9,134.35,6.36974269]
[1745027796187,0.03,134.9,134.35,9.33699169]
[1745027796392,0.03,134.9,134.35,6.36974269]
[1745027796692,0.03,134.9,134.35,9.33699169]
[1745027796912,0.03,134.9,134.35,6.36974269]
[1745027797409,0.03,134.9,134.33,4.88951261]
[1745027797914,0.03,134.9,134.35,2.966589]
[1745027798105,0.03,134.9,134.36,8.3885593]
[1745027798916,0.03,134.9,134.37,2.966589]
[1745027799105,0.03,134.9,134.38,10.82408188]
[1745027799304,0.03,134.9,134.38,9.56902257]
[1745027799711,0.03,134.9,134.38,12.53561157]
[1745027801203,0.03,134.9,134.39,7.54503202]
[1745027801393,0.03,134.9,134.39,6.15536427]
[1745027801595,0.03,134.9,134.39,6.1543687]
[1745027801793,0.03,134.9,134.4,4.96872867]
[1745027803014,0.03,134.9,134.41,2.967469]
[1745027803188,0.03,134.9,134.42,5.33512413]
[1745027803390,0.03,134.9,134.42,2.98123721]
[1745027803613,0.03,134.9,134.42,6.52761901]
[1745027803794,0.03,134.9,134.43,1.79424961]
[1745027803994,0.03,134.9,134.41,2.967469]
[1745027804196,0.03,134.9,134.34,5.11138461]
[1745027804615,0.03,134.9,134.35,2.967469]
[1745027804813,0.03,134.9,134.36,6.85670849]
[1745027805112,0.03,134.9,134.36,3.06683077]
[1745027805413,0.03,134.9,134.37,2.967469]
[1745027805797,0.03,134.9,134.38,7.92878664]
[1745027805998,0.03,134.9,134.38,1.96955918]
[1745027806211,0.03,134.9,134.38,6.22356775]
[1745027806416,0.03,134.9,134.39,3.27561415]
[1745027806604,0.03,134.9,134.39,7.06667666]
[1745027806915,0.03,134.9,134.4,2.92972722]
[1745027807216,0.03,134.9,134.41,4.20648877]
[1745027807519,0.03,134.9,134.39,5.79247464]
[1745027807714,0.03,134.9,134.39,4.10587118]
[1745027809715,0.03,134.9,134.38,2.967909]
[1745027809910,0.03,134.9,134.33,4.96677962]
[1745027810110,0.03,134.9,134.34,2.96769]
[1745027810416,0.03,134.9,134.35,6.96876645]
[1745027810717,0.03,134.9,134.35,6.73129638]
[1745027811101,0.03,134.9,134.35,9.69898538]
[1745027811306,0.03,134.9,134.35,6.73129638]
[1745027812118,0.03,134.9,134.35,9.69898638]
[1745027812293,0.03,134.9,134.35,6.73129638]
[1745027812498,0.03,134.9,134.33,9.48798345]
[1745027812695,0.03,134.9,134.35,2.967249]
[1745027812899,0.03,134.9,134.36,8.36497527]
[1745027813109,0.03,134.9,134.36,5.33491116]
[1745027813619,0.03,134.9,134.37,2.967689]
[1745027813817,0.03,134.9,134.38,8.48908554]
[1745027814018,0.03,134.9,134.38,5.18577689]
[1745027814922,0.03,134.9,134.38,8.15346589]
[1745027815220,0.03,134.9,134.38,5.18577689]
[1745027815517,0.03,134.9,134.38,8.15346589]
[1745027816220,0.03,134.9,134.38,5.18577689]
[1745027816520,0.03,134.9,134.38,8.15346589]
[1745027817510,0.03,134.9,134.38,5.18577689]
[1745027817711,0.03,134.9,134.38,8.15346589]
[1745027817911,0.03,134.9,134.38,5.18577689]
[1745027818111,0.03,134.9,134.38,2.967689]
[1745027818312,0.03,134.9,134.39,6.20552068]
[1745027818819,0.03,134.9,134.33,8.76447442]
[1745027819027,0.03,134.9,134.38,2.967689]
[1745027819324,0.03,134.9,134.33,6.22656933]
[1745027819525,0.03,134.9,134.34,2.967689]
[1745027819715,0.03,134.9,134.35,9.11070186]
[1745027819917,0.03,134.9,134.35,4.61456057]
[1745027820313,0.03,134.9,134.35,7.58224957]
[1745027820622,0.03,134.9,134.35,4.61456057]
[1745027820817,0.03,134.9,134.33,8.04835656]
[1745027821016,0.03,134.9,134.35,2.967689]
[1745027821923,0.03,134.9,134.36,9.54705012]
[1745027822118,0.03,134.9,134.36,7.00568719]
[1745027822525,0.03,134.9,134.37,2.967689]
[1745027822831,0.03,134.9,134.38,9.52185012]
[1745027823031,0.03,134.9,134.38,4.20341231]
[1745027823631,0.03,134.9,134.38,7.17110131]
[1745027823931,0.03,134.9,134.38,4.20341231]
[1745027824132,0.03,134.9,134.38,7.17110131]
[1745027824626,0.03,134.9,134.38,4.20341231]
[1745027824937,0.03,134.9,134.38,7.17110131]
[1745027825238,0.03,134.9,134.38,4.20341231]
[1745027825620,0.03,134.9,134.38,7.17110231]
[1745027826027,0.03,134.9,134.38,4.20341231]
[1745027826238,0.03,134.9,134.38,7.17110131]
[1745027826633,0.03,134.9,134.38,4.20341231]
[1745027826834,0.03,134.9,134.38,7.17110131]
[1745027827142,0.03,134.9,134.38,4.20341231]
[1745027827625,0.03,134.9,134.38,7.17110131]
[1745027828124,0.03,134.9,134.38,4.20341231]
[1745027828320,0.03,134.9,134.39,4.20341231]
[1745027832643,0.03,134.9,134.34,6.26491084]
[1745027832844,0.03,134.9,134.34,4.9749043]
[1745027833149,0.03,134.9,134.38,2.968571]
[1745027833335,0.03,134.9,134.39,7.01464404]
[1745027833647,0.03,134.9,134.39,2.98494258]
[1745027833844,0.03,134.9,134.34,6.93847217]
[1745027834143,0.03,134.9,134.38,2.96835]
[1745027838070,0.03,134.9,134.39,7.42877244]
[1745027838266,0.03,134.9,134.39,2.59592578]
[1745027838464,0.03,134.9,134.4,4.37073441]
[1745027839070,0.03,134.9,134.41,2.968791]
[1745027839369,0.03,134.9,134.42,5.79525605]
[1745027839555,0.03,134.9,134.42,2.62244065]
[1745027839748,0.03,134.9,134.42,6.68426663]
[1745027839951,0.03,134.9,134.42,4.38193672]
[1745027840853,0.03,134.9,134.34,4.57581827]
[1745027841052,0.03,134.9,134.42,3.84187843]
[1745027842661,0.03,134.9,134.41,2.96879]
[1745027842860,0.03,134.9,134.42,3.51784306]
[1745027843662,0.03,134.9,134.34,5.09427446]
[1745027843862,0.03,134.9,134.41,2.968791]
[1745027844173,0.03,134.9,134.42,5.36113202]
[1745027844367,0.03,134.9,134.42,3.05656468]
[1745027844667,0.03,134.9,134.42,6.55855789]
[1745027844862,0.03,134.9,134.43,1.86904828]
[1745027845173,0.03,134.9,134.34,6.05835133]
[1745027845374,0.03,134.9,134.43,2.968791]
[1745027845671,0.03,134.9,134.44,6.00795173]
[1745027845870,0.03,134.9,134.44,2.35934497]
[1745027846175,0.03,134.9,134.44,6.50029096]
[1745027846354,0.03,134.9,134.44,4.44192212]
[1745027847573,0.03,134.9,134.44,7.41049212]
[1745027847975,0.03,134.9,134.44,4.44192212]
[1745027848177,0.03,134.9,134.44,7.41027212]
[1745027848478,0.03,134.9,134.44,4.44192212]
[1745027848782,0.03,134.9,134.44,7.40983112]
[1745027849277,0.03,134.9,134.44,4.44192212]
[1745027849478,0.03,134.9,134.44,7.40983112]
[1745027851688,0.03,134.9,134.44,4.44192212]
[1745027854379,0.03,134.9,134.44,7.40983112]
[1745027854786,0.03,134.9,134.44,4.44192212]
[1745027855686,0.03,134.9,134.44,7.40939112]
[1745027857589,0.03,134.9,134.44,4.44192212]
[1745027857792,0.03,134.9,134.44,7.40961212]
[1745027858392,0.03,134.9,134.44,4.44192212]
[1745027858593,0.03,134.9,134.44,7.40961212]
[1745027859093,0.03,134.9,134.44,4.44192212]
[1745027859293,0.03,134.9,134.44,7.40961212]
[1745027859590,0.03,134.9,134.44,4.44192212]
[1745027859773,0.03,134.9,134.39,4.51462703]
[1745027859974,0.03,134.9,134.44,2.967689]
[1745027861388,0.03,134.9,134.45,5.75809719]
[1745027861693,0.03,134.9,134.46,1.02010683]
[1745027861894,0.03,134.9,134.38,0.063]
[1745027862087,0.03,134.9,134.39,4.83934128]
[1745027862291,0.03,134.9,134.44,2.967689]
[1745027862477,0.03,134.9,134.45,6.27937547]
[1745027862676,0.03,134.9,134.45,2.08748043]
[1745027862877,0.03,134.9,134.45,0.0731384]
[1745027863602,0.03,134.9,134.45,1.28174362]
[1745027863786,0.03,134.9,134.38,0.063]
[1745027864096,0.03,134.9,134.44,2.967689]
[1745027864595,0.03,134.9,134.45,5.96111791]
[1745027864894,0.03,134.9,134.45,2.40573799]
[1745027865094,0.03,134.9,134.46,0.11726023]
[1745027865291,0.03,134.9,134.44,2.967909]
[1745027865496,0.03,134.9,134.47,0.07210409]
[1745027865697,0.03,134.9,134.48,0.07210409]
[1745027865884,0.03,134.9,134.46,2.968129]
[1745027868395,0.03,134.9,134.47,1.2124516]
[1745027868692,0.03,134.9,134.46,2.968129]
[1745027869091,0.03,134.9,134.38,0.063]
[1745027869278,0.03,134.9,134.47,1.2124516]
[1745027869475,0.03,134.9,134.38,0.063]
[1745027869671,0.03,134.9,134.39,4.80503202]
[1745027869878,0.03,134.9,134.39,4.05758531]
[1745027872378,0.03,134.9,134.38,0.063]
[1745027872581,0.03,134.9,134.39,1.84658809]
[1745027872780,0.03,134.9,134.38,20.49581668]
[1745027873080,0.03,134.9,134.39,3.03375169]
[1745027873280,0.03,134.9,134.39,6.98662581]
[1745027873481,0.03,134.9,134.39,4.61537567]
[1745027878206,0.03,134.9,134.4,0.22024648]
[1745027878408,0.03,134.9,134.41,6.01281418]
[1745027878706,0.03,134.9,134.41,2.7692254]
[1745027878904,0.03,134.9,134.41,6.75089042]
[1745027879106,0.03,134.9,134.41,3.17472741]
[1745027879407,0.03,134.9,134.41,6.14263641]
[1745027880301,0.03,134.9,134.41,6.14241741]
[1745027880606,0.03,134.9,134.41,3.17472741]
[1745027881404,0.03,134.9,134.41,6.14241641]
[1745027881700,0.03,134.9,134.42,2.72147171]
[1745027882098,0.03,134.9,134.42,5.56718519]
[1745027882405,0.03,134.9,134.42,3.8597571]
[1745027883496,0.03,134.9,134.43,0.22019733]
[1745027883696,0.03,134.9,134.44,6.04615174]
[1745027883900,0.03,134.9,134.44,2.31585426]
[1745027884597,0.03,134.9,134.44,5.28376326]
[1745027884993,0.03,134.9,134.44,2.31585426]
[1745027885308,0.03,134.9,134.44,5.28354326]
[1745027885908,0.03,134.9,134.44,2.31585426]
[1745027886609,0.03,134.9,134.44,5.28354426]
[1745027886807,9.42385045,135.0,134.44,5.28354426]
[1745027886999,6.07402743,135.0,134.44,2.31585426]
[1745027887201,2.96769,135.06,134.44,2.31585426]
[1745027887505,2.96769,135.06,134.44,11.73970426]
[1745027887704,15.117,135.09,134.44,11.73970426]
[1745027888106,15.117,135.09,134.44,2.31585426]
[1745027888412,15.117,135.09,134.45,2.31585426]
[1745027888612,15.117,135.09,134.45,6.46829168]
[1745027889100,15.117,135.09,134.42,3.15538806]
[1745027889312,21.02497152,135.09,134.44,15.117]
[1745027889513,21.02497152,135.09,134.45,7.05670782]
[1745027889814,21.02497152,135.09,134.45,6.05165525]
[1745027890698,21.02497152,135.09,134.42,3.40536992]
[1745027892622,21.02497152,135.09,134.44,17.464907]
[1745027892801,21.02497152,135.09,134.45,7.23463726]
[1745027893000,21.02497152,135.09,134.45,6.81288861]
[1745027893806,21.02497152,135.09,134.42,2.9486299]
[1745027894008,21.02497152,135.09,134.44,17.464908]
[1745027894206,21.02497152,135.09,134.45,6.91237397]
[1745027894906,21.02497152,135.09,134.44,17.464908]
[1745027895109,21.02497152,135.09,134.42,2.91413869]
[1745027895813,21.02497152,135.09,134.42,6.91345147]
[1745027896000,21.02497152,135.09,134.42,2.98909219]
[1745027896503,21.02497152,135.09,134.42,6.94182102]
[1745027896704,21.02497152,135.09,134.42,2.97207046]
[1745027900499,21.02497152,135.09,134.42,6.9424622]
[1745027900704,29.9609614,135.09,134.42,6.9424622]
[1745027900903,8.93598988,135.08,134.42,6.9424622]
[1745027905130,82.3706807,135.09,134.42,6.9424622]
[1745027906024,60.1113587,135.09,134.42,2.99688575]
[1745027906328,77.5762667,135.09,134.42,2.99688575]
[1745027906533,77.5762667,135.09,134.42,6.95983281]
[1745027906730,60.1113587,135.09,134.42,6.95983281]
[1745027906935,60.1113587,135.09,134.42,2.98646338]
[1745027907119,82.3739837,135.09,134.42,6.92843884]
[1745027907433,60.1113587,135.09,134.42,3.00529976]
[1745027907622,77.5762667,135.09,134.42,6.94162409]
[1745027908034,69.04734858,135.09,134.42,6.94162409]
[1745027908334,91.30501858,135.09,134.42,6.94162409]
[1745027908521,69.04734858,135.09,134.42,2.99738861]
[1745027908828,86.51225658,135.09,134.42,2.99738861]
[1745027909033,86.51225658,135.09,134.42,6.96018483]
[1745027909214,69.04734858,135.09,134.42,2.98625217]
[1745027909618,69.04734858,135.09,134.42,6.93904204]
[1745027909933,60.1113587,135.09,134.42,2.99893784]
[1745027910940,77.5762657,135.09,134.42,2.99893784]
[1745027912415,77.5762657,135.09,134.42,6.9371706]
[1745027912616,60.1113587,135.09,134.42,6.9371706]
[1745027912937,82.3673777,135.09,134.42,6.9371706]
[1745027913931,82.3673777,135.09,134.42,3.00006071]
[1745027914132,60.1113587,135.09,134.42,3.00006071]
[1745027914330,60.1113587,135.09,134.42,6.93795599]
[1745027914534,77.5762667,135.09,134.42,6.93795599]
[1745027915135,77.5762667,135.09,134.42,2.99958947]
[1745027915524,77.5762667,135.09,134.42,6.95826296]
[1745027917037,77.5762667,135.09,134.42,2.98740529]
[1745027917226,60.1113587,135.09,134.42,6.92909756]
[1745027917417,77.5762667,135.09,134.42,6.92909756]
[1745027917619,77.5762667,135.09,134.42,3.00490453]
[1745027917830,60.1113587,135.09,134.42,6.97533129]
[1745027918137,82.3673767,135.09,134.42,2.97716429]
[1745027918438,8.93598988,135.08,134.42,6.94602735]
[1745027918642,8.93598988,135.08,134.42,2.99474666]
[1745027918942,82.3690277,135.09,134.42,2.99474666]
[1745027919235,60.1113587,135.09,134.42,2.99474666]
[1745027919441,77.5762657,135.09,134.42,6.94412184]
[1745027919739,60.1113587,135.09,134.42,6.94412184]
[1745027919923,82.3690287,135.09,134.42,2.99588996]
[1745027920244,60.1113587,135.09,134.42,2.99588996]
[1745027920541,77.5762657,135.09,134.42,2.99588996]
[1745027920735,77.5762657,135.09,134.42,6.93503766]
[1745027920935,69.04734858,135.09,134.42,3.00134047]
[1745027921134,91.30336658,135.09,134.42,6.95220081]
[1745027922025,91.30336658,135.09,134.42,2.99104258]
[1745027922226,8.93598988,135.08,134.42,2.99104258]
[1745027922726,8.93598988,135.08,134.42,6.94499206]
[1745027923941,60.1113587,135.09,134.42,6.94499206]
[1745027924147,60.1113587,135.09,134.42,2.99536783]
[1745027924337,82.3690287,135.09,134.42,6.96865539]
[1745027924636,60.1113587,135.09,134.42,6.96865539]
[1745027924839,82.3690277,135.09,134.42,2.98116983]
[1745027925143,91.30501758,135.09,134.42,6.93461775]
[1745027925439,91.30501758,135.09,134.42,3.00159242]
[1745027925642,91.30501758,135.09,134.42,6.95237654]
[1745027925939,69.04734858,135.09,134.42,2.99093714]
[1745027926143,69.04734858,135.09,134.42,6.95480276]
[1745027926327,91.30336658,135.09,134.42,6.95480276]
[1745027927342,69.04734858,135.09,134.42,6.95480276]
[1745027927540,69.04734858,135.09,134.42,2.98948141]
[1745027927842,91.30336758,135.09,134.42,2.98948141]
[1745027928031,69.04734858,135.09,134.42,6.94130194]
[1745027928232,91.30336758,135.09,134.42,2.9975819]
[1745027928541,91.30336758,135.09,134.42,6.94610657]
[1745027928741,69.04734858,135.09,134.42,2.99469913]
[1745027928943,86.51225658,135.09,134.42,6.9449551]
[1745027929433,86.51225658,135.09,134.42,2.99539001]
[1745027929636,86.51225658,135.09,134.42,6.90747758]
[1745027929838,69.04734858,135.09,134.42,6.90747758]
[1745027930044,69.04734858,135.09,134.42,3.01787652]
[1745027932350,91.30336658,135.09,134.42,3.01787652]
[1745027932526,91.30336658,135.09,134.42,6.96031326]
[1745027933648,69.04734858,135.09,134.42,6.96031326]
[1745027933944,91.30336758,135.09,134.42,2.98617511]
[1745027934146,69.04734858,135.09,134.42,6.93907359]
[1745027934541,91.30336658,135.09,134.42,2.99891891]